fUSD/lending_fUSD_20240319
["ID","MTS","AMOUNT","RATE_DAILY","PERIOD"]
[319617372,1710889911499,-1719.72170688,0.00049181,120]
[319617373,1710889911508,-151.87889946,0.00049182,30]
[319617374,1710889911518,-5698.2912108,0.00049186,120]
[319617375,1710889911528,-5698.2912108,0.00049194,120]
[319617376,1710889911538,-125823.86311506,0.00049195,120]
[319617377,1710889911548,-151.52368684,0.00049197,30]
[319617378,1710889911557,-1434.05,0.00049205,91]
[319617379,1710889911567,-1719.72170688,0.00049211,120]
[319617380,1710889911577,-860.2474767,0.00049218,120]
[319617381,1710889911586,-125823.86311506,0.0004922,120]
[319617382,1710889911596,-5698.2912108,0.00049228,120]
[319617383,1710889911605,-154.11102107,0.00049232,30]
[319617384,1710889911615,-734.0,0.00049233,30]
[319617385,1710889911625,-384.0,0.00049233,30]
[319617386,1710889911635,-388.0,0.00049233,30]
[319617387,1710889911644,-125823.86311506,0.00049241,120]
[319617388,1710889911654,-125823.86311506,0.00049265,120]
[319617389,1710889911663,-125823.86311506,0.00049266,120]
[319617390,1710889911673,-3853.93999789,0.00049288,120]
[319617391,1710889911683,-1719.72170688,0.0004929,120]
[319617392,1710889911692,-5698.2912108,0.00049292,120]
[319617393,1710889911701,-3853.93999789,0.00049294,120]
[319617394,1710889911711,-860.2474767,0.00049296,120]
[319617395,1710889911720,-11909.17838535,0.000493,63]
[319617396,1710889911730,-155.02208943,0.00049302,30]
[319617397,1710889911741,-3207.16,0.00049315,6]
[319617398,1710889911750,-2000.0,0.00049315,120]
[319617399,1710889911759,-7371.87,0.00049315,5]
[319617400,1710889911768,-7371.87,0.00049315,5]
[319617401,1710889911777,-7371.87,0.00049315,5]
[319617402,1710889911786,-7371.87,0.00049315,5]
[319617403,1710889911795,-7371.87,0.00049315,5]
[319617404,1710889911804,-7371.87,0.00049315,5]
[319617405,1710889911813,-7371.87,0.00049315,5]
[319617406,1710889911822,-7371.87,0.00049315,5]
[319617407,1710889911831,-7371.87,0.00049315,5]
[319617408,1710889911844,-7371.87,0.00049315,5]
[319617409,1710889911854,-7371.87,0.00049315,5]
[319617410,1710889911866,-7371.87,0.00049315,5]
[319617411,1710889911875,-7371.87,0.00049315,5]
[319617412,1710889911889,-7371.87,0.00049315,5]
[319617413,1710889911899,-7371.87,0.00049315,5]
[319617414,1710889911908,-7371.87,0.00049315,5]
[319617415,1710889911917,-7371.87,0.00049315,5]
[319617416,1710889911926,-7371.87,0.00049315,5]
[319617417,1710889911935,-7371.87,0.00049315,5]
[319617418,1710889911944,-7371.87,0.00049315,5]
[319617419,1710889911953,-7371.87,0.00049315,5]
[319617420,1710889911963,-7371.87,0.00049315,5]
[319617421,1710889911973,-7371.87,0.00049315,5]
[319617422,1710889911982,-7371.99000079,0.00049315,5]
[319617423,1710889911992,-2000.0,0.00049315,120]
[319617424,1710889912001,-2000.0,0.00049315,120]
[319617425,1710889912010,-500.0,0.00049315,2]
[319617426,1710889912020,-1692.71,0.00049315,120]
[319617427,1710889912029,-1692.71,0.00049315,120]
[319617428,1710889912038,-1692.71,0.00049315,120]
[319617429,1710889912047,-1692.71,0.00049315,120]
[319617430,1710889912055,-1692.71,0.00049315,120]
[319617431,1710889912064,-1692.71,0.00049315,120]
[319617432,1710889912074,-1692.71,0.00049315,120]
[319617433,1710889912083,-1692.71,0.00049315,120]
[319617434,1710889912093,-1692.71,0.00049315,120]
[319617435,1710889912102,-1692.71,0.00049315,120]
[319617436,1710889912111,-1692.71,0.00049315,120]
[319617437,1710889912119,-1692.71,0.00049315,120]
[319617438,1710889912129,-1692.71,0.00049315,120]
[319617439,1710889912137,-1692.71,0.00049315,120]
[319617440,1710889912146,-1692.71,0.00049315,120]
[319617441,1710889912155,-1692.71,0.00049315,120]
[319617442,1710889912164,-1692.71,0.00049315,120]
[319617443,1710889912173,-1692.71,0.00049315,120]
[319617444,1710889912183,-1692.71,0.00049315,120]
[319617445,1710889912192,-1692.71,0.00049315,120]
[319617446,1710889912201,-1692.71,0.00049315,120]
[319617447,1710889912210,-1692.71,0.00049315,120]
[319617448,1710889912219,-1692.71,0.00049315,120]
[319617449,1710889912228,-1692.89061613,0.00049315,120]
[319617450,1710889912242,-10422.53,0.00049315,6]
[319617451,1710889912251,-1000.0,0.00049315,120]
[319617452,1710889912260,-1000.0,0.00049315,120]
[319617453,1710889912269,-1000.0,0.00049315,120]
[319617454,1710889912279,-700.0,0.0004937,3]
[319617455,1710889912288,-216.0,0.0004939,30]
[319617456,1710889912298,-210.0,0.0004939,30]
[319617457,1710889912307,-216.0,0.0004939,30]
[319617458,1710889912317,-207.0,0.0004939,30]
[319617459,1710889912326,-269.0,0.0004939,30]
[319617460,1710889912336,-772.0,0.00049392,30]
[319617461,1710889912345,-2431.0,0.00049392,30]
[319617462,1710889912354,-325.0,0.00049392,30]
[319617463,1710889912364,-3339.15497592,0.000494,4]
[319617464,1710889912373,-155.0,0.000494,30]
[319617465,1710889912383,-387.64201907,0.000494,15]
[319617466,1710889912392,-169.43339483,0.000494,7]
[319617467,1710889912402,-758.6787969,0.000494,61]
[319617468,1710889912411,-1026.0,0.000494,30]
[319617469,1710889912420,-152.0,0.00049408,5]
[319617470,1710889912429,-154.374441,0.00049454,30]
[319617471,1710889912438,-14618.46,0.000495,25]
[319617472,1710889912447,-367.90974691,0.00049587,30]
[319617473,1710889912456,-3207.16,0.00049589,6]
[319617474,1710889912465,-326.62906583,0.00049591,120]
[319617475,1710889912475,-151.92884617,0.00049596,30]
[319617476,1710889912487,-262.95803785,0.00049598,30]
[319617477,1710889912497,-262.95803785,0.00049636,30]
[319617478,1710889912506,-734.0,0.00049644,60]
[319617479,1710889912516,-384.0,0.00049644,60]
[319617480,1710889912526,-388.0,0.00049644,60]
[319617481,1710889912703,-367.90974691,0.0004973,30]
[319617482,1710889912714,-262.95803785,0.00049744,30]
[319617483,1710889912724,-151.3656308,0.00049763,43]
[319617484,1710889912736,-166.04113063,0.00049792,30]
[319617485,1710889912746,-250867.74797228,0.000498,5]
[319617486,1710889912756,-152.66890905,0.00049809,30]
[319617487,1710889912766,-2000.0,0.00049863,120]
[319617488,1710889912776,-3207.16,0.00049863,6]
[319617489,1710889912785,-2000.0,0.00049863,120]
[319617490,1710889912795,-2000.0,0.00049863,120]
[319617491,1710889912805,-903.44,0.00049863,120]
[319617492,1710889912814,-156.3849663,0.00049869,30]
[319617493,1710889912823,-22758.99872418,0.00049877,2]
[319617494,1710889912833,-772.0,0.00049896,30]
[319617495,1710889912847,-2431.0,0.00049896,30]
[319617496,1710889912856,-325.0,0.00049896,30]
[319617497,1710889912866,-801.0,0.000499,40]
[319617498,1710889912876,-395.25990242,0.00049908,30]
[319617499,1710889912889,-395.25990242,0.00049918,30]
[319617500,1710889912898,-156.3849663,0.0004996,30]
[319617501,1710889912908,-1500.58853054,0.0004999,3]
[319617502,1710889912918,-177.455047,0.00049994,30]
[319617503,1710889912928,-180.986828,0.00049994,30]
[319617504,1710889912939,-218.803839,0.00049994,30]
[319617505,1710889912949,-217.184193,0.00049994,30]
[319617506,1710889912960,-174.368088,0.00049994,30]
[319617507,1710889912970,-173.997498,0.00049994,30]
[319617508,1710889912979,-174.319481,0.00049994,30]
[319617509,1710889912992,-175.429021,0.00049994,30]
[319617510,1710889913001,-150.0,0.00049999,120]
[319617511,1710889913011,-273.80705295,0.00049999,120]
[319617512,1710889913021,-191.66493707,0.00049999,120]
[319617513,1710889913031,-1000.0,0.00049999,120]
[319617514,1710889913040,-200000.0,0.0005,50]
[319617515,1710889913049,-427.80435983,0.0005,60]
[319617516,1710889913059,-7371.78065819,0.0005,120]
[319617517,1710889913068,-163157.64442888,0.0005,120]
[319617518,1710889913077,-29201.02673938,0.0005,30]
[319617519,1710889913087,-3327.0,0.0005,120]
[319617520,1710889913097,-3000.0,0.0005,120]
[319617521,1710889913106,-100201.73864619,0.0005,30]
[319617522,1710889913116,-50000.0,0.0005,120]
[319617523,1710889913125,-5008.602617,0.0005,30]
[319617524,1710889913134,-500.0,0.0005,7]
[319617525,1710889913143,-999.99999978,0.0005,120]
[319617526,1710889913153,-380868.73517476,0.0005,120]
[319617527,1710889913163,-3639.868609,0.0005,30]
[319617528,1710889913172,-1000.0,0.0005,120]
[319617529,1710889913181,-150.54,0.0005,27]
[319617530,1710889913191,-500000.0,0.0005,30]
[319617531,1710889913200,-3000.0,0.0005,90]
[319617532,1710889913210,-61078.59147858,0.0005,120]
[319617533,1710889913219,-1000.0,0.0005,2]
[319617534,1710889913228,-1000.0,0.0005,120]
[319617535,1710889913242,-33250.70051618,0.0005,30]
[319617536,1710889913251,-1253.16791148,0.0005,2]
[319617537,1710889913260,-500.0,0.0005,120]
[319617538,1710889913269,-500.0,0.0005,7]
[319617539,1710889913278,-500.0,0.0005,7]
[319617540,1710889913287,-559319.64,0.0005,20]
[319617541,1710889913297,-155.0,0.0005,3]
[319617542,1710889913306,-32636.56221888,0.0005,60]
[319617543,1710889913315,-1000.0,0.0005,30]
[319617544,1710889913325,-19057.49108665,0.0005,30]
[319617545,1710889913334,-1000.0,0.0005,120]
[319617546,1710889913344,-419812.62654774,0.0005,120]
[319617547,1710889913353,-38255.00498724,0.0005,120]
[319617548,1710889913363,-2070.97999914,0.0005,120]
[319617549,1710889913372,-33638.07285014,0.0005,120]
[319617550,1710889913381,-2500.0,0.0005,120]
[319617551,1710889913391,-1177.17752398,0.0005,30]
[319617552,1710889913400,-6000.0,0.0005,50]
[319617553,1710889913410,-3869.53785401,0.0005,2]
[319617554,1710889913420,-6167.0,0.0005,120]
[319617555,1710889913430,-164148.0,0.0005,120]
[319617556,1710889913439,-999.999999,0.0005,2]
[319617557,1710889913449,-3550.94,0.0005,100]
[319617558,1710889913459,-9187.0,0.0005,13]
[319617559,1710889913470,-638.21,0.0005,120]
[319617560,1710889913479,-10136.93,0.0005,120]
[319617561,1710889913495,-682.96,0.0005,120]
[319617562,1710889913504,-15000.0,0.0005,120]
[319617563,1710889913514,-15000.0,0.0005,120]
[319617564,1710889913523,-200.0,0.0005,27]
[319617565,1710889913533,-29370.0,0.0005,120]
[319617566,1710889913543,-150.2,0.0005,120]
[319617567,1710889913552,-150.2,0.0005,120]
[319617568,1710889913562,-150.2,0.0005,120]
[319617569,1710889913572,-150.2,0.0005,120]
[319617570,1710889913582,-150.2,0.0005,120]
[319617571,1710889913592,-150.2,0.0005,120]
[319617572,1710889913601,-150.2,0.0005,120]
[319617573,1710889913611,-150.2,0.0005,120]
[319617574,1710889913620,-150.2,0.0005,120]
[319617575,1710889913630,-150.2,0.0005,120]
[319617576,1710889913639,-150.2,0.0005,120]
[319617577,1710889913649,-150.2,0.0005,120]
[319617578,1710889913659,-150.2,0.0005,120]
[319617579,1710889913669,-150.2,0.0005,120]
[319617580,1710889913678,-150.2,0.0005,120]
[319617581,1710889913688,-150.2,0.0005,120]
[319617582,1710889913698,-150.2,0.0005,120]
[319617583,1710889913707,-150.2,0.0005,120]
[319617584,1710889913717,-150.2,0.0005,120]
[319617585,1710889913727,-150.2,0.0005,120]
[319617586,1710889913740,-150.2,0.0005,120]
[319617587,1710889913749,-150.2,0.0005,120]
[319617588,1710889913758,-150.2,0.0005,120]
[319617589,1710889913768,-150.2,0.0005,120]
[319617590,1710889913777,-150.2,0.0005,120]
[319617591,1710889913786,-150.2,0.0005,120]
[319617592,1710889913796,-150.2,0.0005,120]
[319617593,1710889913805,-150.2,0.0005,120]
[319617594,1710889913814,-150.2,0.0005,120]
[319617595,1710889913823,-150.2,0.0005,120]
[319617596,1710889913833,-150.2,0.0005,120]
[319617597,1710889913845,-150.2,0.0005,120]
[319617598,1710889913854,-150.2,0.0005,120]
[319617599,1710889913864,-150.2,0.0005,120]
[319617600,1710889913874,-150.2,0.0005,120]
[319617601,1710889913888,-150.2,0.0005,120]
[319617602,1710889913898,-150.2,0.0005,120]
[319617603,1710889913907,-150.2,0.0005,120]
[319617604,1710889913916,-150.2,0.0005,120]
[319617605,1710889913927,-1434.05,0.00050027,120]
[319617606,1710889913937,-734.0,0.00050055,60]
[319617607,1710889913947,-384.0,0.00050055,60]
[319617608,1710889913957,-388.0,0.00050055,60]
[319617609,1710889913967,-152.03925021,0.00050096,60]
[319617610,1710889913979,-365.67,0.00050114,2]
[319617611,1710889913994,-395.25990242,0.00050116,60]
[319617612,1710889914005,-152.83778665,0.00050124,60]
[319617613,1710889914014,-15000.0,0.00050125,120]
[319617614,1710889914024,-3207.16,0.00050136,6]
[319617615,1710889914034,-2191.24174255,0.000502,30]
[319617616,1710889914044,-151.52368684,0.00050231,60]
[319617617,1710889914056,-367.90974691,0.00050232,60]
[319617618,1710889914066,-15000.0,0.0005025,120]
[319617619,1710889914076,-156.3849663,0.00050306,60]
[319617620,1710889914086,-15000.0,0.00050375,120]
[319617621,1710889914095,-801.0,0.000504,40]
[319617622,1710889914105,-772.0,0.000504,30]
[319617623,1710889914114,-2431.0,0.000504,30]
[319617624,1710889914124,-325.0,0.000504,30]
[319617625,1710889914134,-392.38836071,0.000504,30]
[319617626,1710889914143,-2000.0,0.0005041,120]
[319617627,1710889914152,-3207.16,0.0005041,6]
[319617628,1710889914161,-2000.0,0.0005041,120]
[319617629,1710889914171,-2000.0,0.0005041,120]
[319617630,1710889914180,-734.0,0.00050466,60]
[319617631,1710889914190,-384.0,0.00050466,60]
[319617632,1710889914200,-388.0,0.00050466,60]
[319617633,1710889914209,-395.25990242,0.0005048,60]
[319617634,1710889914218,-367.90974691,0.00050487,60]
[319617635,1710889914228,-6911.94349789,0.00050487,2]
[319617636,1710889914239,-17577.0,0.000505,120]
[319617637,1710889914249,-15000.0,0.000505,120]
[319617638,1710889914259,-154.11102107,0.00050519,60]
[319617639,1710889914268,-367.90974691,0.00050618,60]
[319617640,1710889914278,-217.184193,0.00050619,30]
[319617641,1710889914288,-15000.0,0.00050625,120]
[319617642,1710889914298,-155.02208943,0.0005066,60]
[319617643,1710889914308,-395.25990242,0.00050681,60]
[319617644,1710889914317,-3207.16,0.00050684,6]
[319617645,1710889914327,-903.44,0.00050684,120]
[319617646,1710889914336,-395.25990242,0.00050691,60]
[319617647,1710889914346,-395.25990242,0.00050692,60]
[319617648,1710889914355,-262.95803785,0.00050708,60]
[319617649,1710889914366,-3678.545,0.00050719,120]
[319617650,1710889914376,-3678.545,0.00050719,120]
[319617651,1710889914386,-3678.545,0.00050719,120]
[319617652,1710889914396,-3678.545,0.00050719,120]
[319617653,1710889914407,-3678.545,0.00050719,120]
[319617654,1710889914417,-155.02208943,0.00050728,60]
[319617655,1710889914428,-15000.0,0.0005075,120]
[319617656,1710889914438,-367.90974691,0.00050751,60]
[319617657,1710889914447,-152.03925021,0.00050768,60]
[319617658,1710889914459,-1760.61,0.0005077,60]
[319617659,1710889914469,-1760.61,0.0005077,60]
[319617660,1710889914479,-1760.61,0.0005077,60]
[319617661,1710889914492,-1760.61,0.0005077,60]
[319617662,1710889914502,-367.90974691,0.00050771,60]
[319617663,1710889914512,-152.03925021,0.00050788,60]
[319617664,1710889914522,-18158.71585907,0.000508,60]
[319617665,1710889914532,-180.986828,0.00050827,30]
[319617666,1710889914541,-151.52368684,0.00050829,60]
[319617667,1710889914553,-1434.05,0.00050849,120]
[319617668,1710889914564,-15000.0,0.00050875,120]
[319617669,1710889914573,-734.0,0.00050877,60]
[319617670,1710889914583,-384.0,0.00050877,60]
[319617671,1710889914593,-388.0,0.00050877,60]
[319617672,1710889914603,-3072.22857375,0.000509,120]
[319617673,1710889914613,-135288.32274545,0.000509,30]
[319617674,1710889914623,-801.0,0.000509,40]
[319617675,1710889914633,-772.0,0.00050904,30]
[319617676,1710889914643,-2431.0,0.00050904,30]
[319617677,1710889914653,-325.0,0.00050904,30]
[319617678,1710889914663,-151.52368684,0.00050953,60]
[319617679,1710889914673,-2000.0,0.00050958,120]
[319617680,1710889914682,-3207.16,0.00050958,6]
[319617681,1710889914691,-2000.0,0.00050958,120]
[319617682,1710889914701,-1019.77718011,0.00050958,120]
[319617683,1710889914711,-1000.0,0.00050999,120]
[319617684,1710889914721,-200000.0,0.00051,51]
[319617685,1710889914731,-1000.0,0.00051,120]
[319617686,1710889914744,-300.0,0.00051,51]
[319617687,1710889914753,-381.66382327,0.00051,120]
[319617688,1710889914763,-150.0,0.00051,15]
[319617689,1710889914773,-500000.0,0.00051,30]
[319617690,1710889914782,-1000.0,0.00051,120]
[319617691,1710889914791,-500.0,0.00051,120]
[319617692,1710889914801,-25000.0,0.00051,120]
[319617693,1710889914810,-15000.0,0.00051,120]
[319617694,1710889914819,-801.0,0.00051,100]
[319617695,1710889914827,-367.90974691,0.0005103,60]
[319617696,1710889914837,-1760.61,0.00051044,60]
[319617697,1710889914851,-1760.61,0.00051044,60]
[319617698,1710889914861,-395.25990242,0.00051087,60]
[319617699,1710889914870,-17577.0,0.000511,120]
[319617700,1710889914880,-15000.0,0.00051125,120]
[319617701,1710889914893,-262.95803785,0.00051129,60]
[319617702,1710889914903,-395.25990242,0.0005116,60]
[319617703,1710889914912,-262.95803785,0.00051175,60]
[319617704,1710889914921,-262.95803785,0.00051176,60]
[319617705,1710889914930,-395.25990242,0.00051217,60]
[319617706,1710889914939,-3207.16,0.00051232,6]
[319617707,1710889914948,-262.95803785,0.00051233,60]
[319617708,1710889914958,-217.184193,0.00051243,30]
[319617709,1710889914968,-15000.0,0.0005125,120]
[319617710,1710889914978,-155.02208943,0.00051273,60]
[319617711,1710889914989,-1512.0,0.00051288,60]
[319617712,1710889914998,-696.0,0.00051288,60]
[319617713,1710889915007,-706.0,0.00051288,60]
[319617714,1710889915016,-156.3849663,0.00051288,60]
[319617715,1710889915026,-1760.61,0.00051317,60]
[319617716,1710889915035,-1760.61,0.00051317,60]
[319617717,1710889915045,-15000.0,0.00051375,120]
[319617718,1710889915054,-801.0,0.000514,40]
[319617719,1710889915063,-772.0,0.00051408,30]
[319617720,1710889915072,-2431.0,0.00051408,30]
[319617721,1710889915082,-325.0,0.00051408,30]
[319617722,1710889915091,-8842.76,0.000515,120]
[319617723,1710889915100,-801.0,0.000515,101]
[319617724,1710889915110,-2000.0,0.00051506,120]
[319617725,1710889915119,-3207.16,0.00051506,6]
[319617726,1710889915129,-1763.68,0.00051506,120]
[319617727,1710889915140,-903.44,0.00051506,120]
[319617728,1710889915149,-1760.61,0.0005159,60]
[319617729,1710889915159,-1760.61,0.0005159,60]
[319617730,1710889915169,-156.64752417,0.00051592,60]
[319617731,1710889915179,-155.02208943,0.00051602,60]
[319617732,1710889915189,-180.986828,0.0005166,30]
[319617733,1710889915199,-1434.05,0.00051671,120]
[319617734,1710889915209,-1512.0,0.00051699,60]
[319617735,1710889915219,-696.0,0.00051699,60]
[319617736,1710889915229,-706.0,0.00051699,60]
[319617737,1710889915242,-500000.0,0.000517,30]
[319617738,1710889915252,-155.02208943,0.0005171,60]
[319617739,1710889915262,-3533.85985794,0.00051735,4]
[319617740,1710889915272,-19222.05911731,0.00051737,4]
[319617741,1710889915281,-155.63725473,0.00051737,4]
[319617742,1710889915291,-201.05935657,0.00051738,4]
[319617743,1710889915301,-1000.0,0.00051739,120]
[319617744,1710889915311,-3207.16,0.0005178,6]
[319617745,1710889915320,-262.95803785,0.00051785,60]
[319617746,1710889915331,-5016.0,0.00051788,117]
[319617747,1710889915340,-156.3849663,0.00051798,60]
[319617748,1710889915350,-20000.0,0.000518,120]
[319617749,1710889915359,-1760.61,0.00051863,60]
[319617750,1710889915368,-1760.61,0.00051863,60]
[319617751,1710889915378,-217.184193,0.00051868,30]
[319617752,1710889915387,-801.0,0.000519,40]
[319617753,1710889915397,-161.74147954,0.00051908,60]
[319617754,1710889915406,-772.0,0.00051912,30]
[319617755,1710889915416,-2431.0,0.00051912,30]
[319617756,1710889915426,-325.0,0.00051912,30]
[319617757,1710889915435,-151.0,0.0005192,2]
[319617758,1710889915445,-155.02208943,0.00051941,60]
[319617759,1710889915455,-2456.39130802,0.00051944,30]
[319617760,1710889915465,-395.25990242,0.00051977,60]
[319617761,1710889915474,-2567.42133505,0.00051984,30]
[319617762,1710889915484,-2372.67969982,0.00051994,30]
[319617763,1710889915497,-1000.0,0.00051999,120]
[319617764,1710889915507,-5340.28,0.00051999,2]
[319617765,1710889915517,-200000.0,0.00052,52]
[319617766,1710889915527,-12336.58308265,0.00052,60]
[319617767,1710889915536,-500.0,0.00052,7]
[319617768,1710889915545,-376.64444444,0.00052,120]
[319617769,1710889915555,-151.0,0.00052,120]
[319617770,1710889915564,-1000.0,0.00052,120]
[319617771,1710889915575,-1000.0,0.00052,120]
[319617772,1710889915585,-500000.0,0.00052,30]
[319617773,1710889915594,-1000.0,0.00052,120]
[319617774,1710889915603,-40660.94527523,0.00052,90]
[319617775,1710889915613,-1398.0,0.00052,102]
[319617776,1710889915622,-367.90974691,0.00052003,60]
[319617777,1710889915633,-2000.0,0.00052054,120]
[319617778,1710889915795,-3207.16,0.00052054,120]
[319617779,1710889915806,-10422.53,0.00052054,6]
[319617780,1710889915816,-2000.0,0.00052054,120]
[319617781,1710889915825,-1512.0,0.00052109,120]
[319617782,1710889915835,-696.0,0.00052109,120]
[319617783,1710889915847,-706.0,0.00052109,120]
[319617784,1710889915856,-1760.61,0.00052137,90]
[319617785,1710889915866,-1760.61,0.00052137,90]
[319617786,1710889915875,-262.95803785,0.00052152,60]
[319617787,1710889915889,-395.25990242,0.00052199,60]
[319617788,1710889915899,-2500.0,0.00052203,120]
[319617789,1710889915908,-151.52368684,0.00052233,60]
[319617790,1710889915918,-156.3849663,0.000523,60]
[319617791,1710889915927,-367.90974691,0.0005231,60]
[319617792,1710889915937,-3207.16,0.00052328,120]
[319617793,1710889915946,-903.44,0.00052328,120]
[319617794,1710889915957,-166.66666668,0.00052367,60]
[319617795,1710889915966,-365.67,0.00052378,2]
[319617796,1710889915976,-801.0,0.000524,40]
[319617797,1710889915985,-1760.61,0.0005241,90]
[319617798,1710889915996,-1760.61,0.0005241,90]
[319617799,1710889916006,-367.90974691,0.0005241,60]
[319617800,1710889916015,-395.25990242,0.00052428,60]
[319617801,1710889916024,-6365.05,0.00052486,90]
[319617802,1710889916033,-1434.05,0.00052493,120]
[319617803,1710889916043,-151.0,0.00052493,120]
[319617804,1710889916053,-218.803839,0.00052493,30]
[319617805,1710889916062,-217.184193,0.00052493,30]
[319617806,1710889916071,-180.986828,0.00052493,30]
[319617807,1710889916080,-500000.0,0.000525,25]
[319617808,1710889916090,-500000.0,0.000525,30]
[319617809,1710889916099,-1000.0,0.000525,120]
[319617810,1710889916108,-151.87889946,0.00052511,60]
[319617811,1710889916117,-1512.0,0.0005252,120]
[319617812,1710889916126,-696.0,0.0005252,120]
[319617813,1710889916136,-706.0,0.0005252,120]
[319617814,1710889916145,-376.64444444,0.00052548,120]
[319617815,1710889916154,-156.3849663,0.00052565,60]
[319617816,1710889916166,-2000.0,0.00052602,120]
[319617817,1710889916175,-3207.16,0.00052602,120]
[319617818,1710889916185,-2464.87,0.00052602,120]
[319617819,1710889916195,-155.0817669,0.00052638,60]
[319617820,1710889916204,-367.90974691,0.00052672,60]
[319617821,1710889916214,-1760.61,0.00052683,90]
[319617822,1710889916223,-1760.61,0.00052683,90]
[319617823,1710889916232,-152.83778665,0.00052727,60]
[319617824,1710889916243,-151.52368684,0.00052731,60]
[319617825,1710889916252,-465.0,0.00052748,28]
[319617826,1710889916261,-367.90974691,0.00052835,60]
[319617827,1710889916271,-3207.2749193,0.00052876,120]
[319617828,1710889916281,-2000.0,0.00052876,120]
[319617829,1710889916290,-175.58196687,0.00052893,60]
[319617830,1710889916300,-801.0,0.000529,40]
[319617831,1710889916310,-157.91361845,0.000529,120]
[319617832,1710889916319,-395.25990242,0.00052906,60]
[319617833,1710889916328,-1512.0,0.00052931,120]
[319617834,1710889916338,-696.0,0.00052931,120]
[319617835,1710889916347,-706.0,0.00052931,120]
[319617836,1710889916356,-152.03925021,0.0005295,60]
[319617837,1710889916366,-1760.61,0.00052956,90]
[319617838,1710889916376,-1760.61,0.00052956,90]
[319617839,1710889916385,-151.0,0.00052986,120]
[319617840,1710889916395,-5300.0,0.0005299,25]
[319617841,1710889916404,-237.73163227,0.00052996,2]
[319617842,1710889916414,-41769.33968194,0.00052998,120]
[319617843,1710889916423,-11911.59174049,0.00052998,90]
[319617844,1710889916433,-15797.21749227,0.00052998,90]
[319617845,1710889916442,-1000.0,0.00052999,120]
[319617846,1710889916451,-200000.0,0.00053,53]
[319617847,1710889916461,-7951.68702231,0.00053,4]
[319617848,1710889916471,-200.0,0.00053,53]
[319617849,1710889916480,-1000.0,0.00053,120]
[319617850,1710889916491,-1062.89,0.00053,21]
[319617851,1710889916501,-1000.0,0.00053,15]
[319617852,1710889916510,-54634.20201394,0.00053,30]
[319617853,1710889916520,-1000.0,0.00053,120]
[319617854,1710889916529,-50000.0,0.00053,120]
[319617855,1710889916539,-367.90974691,0.00053018,60]
[319617856,1710889916548,-152.0,0.00053038,6]
[319617857,1710889916557,-184.484269,0.0005308,30]
[319617858,1710889916567,-164.337689,0.0005308,30]
[319617859,1710889916577,-180.113804,0.0005308,7]
[319617860,1710889916586,-174.050698,0.0005308,7]
[319617861,1710889916596,-376.64444444,0.00053096,120]
[319617862,1710889916607,-367.90974691,0.00053131,60]
[319617863,1710889916617,-152.83778665,0.00053141,60]
[319617864,1710889916628,-2000.0,0.0005315,120]
[319617865,1710889916638,-903.44,0.0005315,120]
[319617866,1710889916648,-2464.87,0.0005315,120]
[319617867,1710889916658,-152.03925021,0.00053218,60]
[319617868,1710889916668,-1760.61,0.0005323,90]
[319617869,1710889916678,-1760.61,0.0005323,90]
[319617870,1710889916688,-151.87889947,0.00053247,60]
[319617871,1710889916697,-1434.05,0.00053315,120]